[Event "African Individual Chess-ch Open 2024"]
[Site "Accra"]
[Date "2024.03.17"]
[Round "5.9"]
[White "KIGIGHA, Bomo Lovet"]
[Black "Oluka Robert Mcligeyo"]
[Result "1-0"]
[ECO "B14"]
[WhiteElo "2231"]
[BlackElo "2041"]
[Annotator "TA"]
[PlyCount "139"]
[EventDate "2024.03.13"]
[EventCountry "GHA"]
[SourceTitle "playchess.com"]
[Source "ChessBase"]
[SourceQuality "1"]
[TimeControl "5400+30"]

{[%evp 46,138,13,13,18,4,12,0,0,0,0,0,0,0,0,0,0,0,0,0,0,0,18,16,35,0,0,0,0,0,12,0,0,0,27,23,131,114,185,5,0,0,160,0,0,0,0,0,0,0,0,0,0,-86,87,95,199,194,191,189,249,239,252,211,316,290,345,326,342,323,329,95,341,350,346,320,336,345,438,445,441,388,455,475,625,620,666,664,816,1201,1225,1183,29994,29995,29999]} 1. c4 {[%emt 0:00:05]} c6 {[%emt 0:14:20]} 2. e4 {[%emt 0:00:07]} d5 {[%emt 0:00:08]} 3. exd5 {[%emt 0:00:07]} cxd5 {[%emt 0:00:06]} 4. d4 {[%emt 0:00:02]} Nf6 {[%emt 0:00:29]} 5. Nc3 {[%emt 0:00:09]} g6 {[%emt 0:00:34]} 6. Bg5 {[%emt 0:07:50]} Bg7 {[%emt 0:00:06]} 7. cxd5 {[%emt 0:04:07]} O-O {[%emt 0:00:39]} 8. Bc4 {[%emt 0:04:58]} Nbd7 {[%emt 0:00:20]} 9. Bb3 {[%emt 0:02:31]} Nb6 {[%emt 0:03:36]} 10. Bxf6 {[%emt 0:00:53]} Bxf6 {[%emt 0:00:10]} 11. Nge2 {[%emt 0:00:04]} Bg4 {[%emt 0:01:23]} 12. f3 {[%emt 0:00:31]} Bd7 {[%emt 0:00:06]} 13. O-O {[%emt 0:00:10]} Rc8 {[%emt 0:00:07]} 14. Ne4 {[%emt 0:08:46]} Nc4 {[%emt 0:07:45]} 15. Nxf6+ {[%emt 0:03:58]} exf6 {[%emt 0:00:07]} 16. Bxc4 {[%emt 0:00:15]} Rxc4 {[%emt 0:00:06]} 17. Qb3 {[%emt 0:00:10]} b5 {[%emt 0:03:17]} 18. Rac1 {[%emt 0:03:44]} Qe8 {[%emt 0:00:14]} 19. Qd3 {[%emt 0:02:53]} Bf5 {[%emt 0:01:16]} 20. Qd2 {[%emt 0:00:06]} Qd8 {[%emt 0:02:13]} 21. Rxc4 {[%emt 0:02:50]} bxc4 {[%emt 0:00:18]} 22. Nc3 {[%emt 0:00:05]} Bd3 {[%emt 0:00:03]} 23. Rd1 {[%emt 0:04:20]} Qb6 {[%emt 0:00:43]} 24. Qf2 {[%emt 0:00:07]} Re8 {[%emt 0:04:19]} 25. Rd2 {[%emt 0:03:37]} f5 {[%emt 0:02:37]} 26. a3 {[%emt 0:11:08]} f4 {[%emt 0:00:59]} 27. g3 {[%emt 0:08:34]} h5 {[%emt 0:18:59]} 28. Rd1 {[%emt 0:11:15]} Re3 {[%emt 0:06:16]} 29. gxf4 {[%emt 0:07:56]} Re8 {[%emt 0:00:15]} (29... Qxd4 $2 30. d6 Qxf4 31. d7 Qg5+ 32. Kh1 $18) 30. Kg2 {[%emt 0:00:15]} Qf6 {[%emt 0:00:29]} 31. Re1 {[%emt 0:00:45]} Rb8 {[%emt 0:01:04]} 32. Nd1 {[%emt 0:04:26]} Qxf4 {[%emt 0:00:16]} 33. Qe3 {[%emt 0:00:18]} Qxe3 {[%emt 0:03:53]} 34. Rxe3 {[%emt 0:00:05]} Rb5 {[%emt 0:00:23]} 35. Re5 {[%emt 0:02:05]} f6 {[%emt 0:00:55]} 36. Re8+ {[%emt 0:01:08]} Kf7 {[%emt 0:00:11]} 37. Ra8 {[%emt 0:00:49]} Rb7 {[%emt 0:01:55]} 38. Kg3 {[%emt 0:00:29]} g5 {[%emt 0:00:20]} 39. h4 {[%emt 0:00:31]} Rd7 {[%emt 0:07:39]} 40. Nc3 {[%emt 0:00:50]} Kg6 {[%emt 0:00:47]} (40... Rb7 $1 $11) 41. Rc8 {[%emt 0:01:18]} Rb7 {[%emt 0:00:21]} (41... Kf5 $16 {was worth a try.}) 42. Na4 $2 {[%emt 0:02:39]} (42. d6 $18) 42... Rd7 $1 $11 {[%emt 0:05:53]} 43. Rc5 {[%emt 0:00:31]} Be2 $2 {[%emt 0:01:01]} (43... gxh4+ $11 44. Kxh4 Kf5) 44. f4 $2 {[%emt 0:00:00]} ({White must play} 44. hxg5 $1 $16 {Nc3 is the strong threat.} Kxg5 45. d6+ Kg6 46. Kf2) 44... gxh4+ $11 {[%emt 0:00:00]} 45. Kxh4 {[%emt 0:00:00]} Kf5 {[%emt 0:00:00]} 46. Nc3 {[%emt 0:00:00]} Bd3 {[%emt 0:00:00]} 47. Kg3 {[%emt 0:00:00]} (47. Kxh5 $2 Rh7#) 47... h4+ {[%emt 0:00:00]} 48. Kf3 $1 {[%emt 0:00:00]} (48. Kxh4 Kxf4 49. Kh3 Kf3 $19) 48... h3 {[%emt 0:00:00]} 49. Kg3 {[%emt 0:00:00] [#]} (49. d6+ $1 $11 Kg6 50. Kg3) 49... h2 $2 {[%emt 0:00:00]} (49... Rg7+ $1 $17 50. Kxh3 Kxf4) 50. d6+ $16 {[%emt 0:00:00]} (50. Kxh2 Kxf4 51. Rc8 f5 $15) 50... Kg6 {[%emt 0:00:00]} (50... Ke6 $16 51. Kxh2 Rb7) 51. Kxh2 $18 {[%emt 0:00:00]} Rxd6 {[%emt 0:00:00]} 52. d5 {[%emt 0:00:00]} Rb6 {[%emt 0:00:00]} (52... Rd7 $142 53. Kg3 Kf7) 53. Rb5 $18 {[%emt 0:00:00]} Rd6 {[%emt 0:00:00]} 54. Kg3 {[%emt 0:00:00]} a6 {[%emt 0:00:00]} (54... Rd8 {was called for.} 55. a4 Rh8) 55. Rb8 $18 {[%emt 0:00:00]} Kf5 {[%emt 0:00:00]} 56. Kf3 {[%emt 0:00:00]} Bc2 {[%emt 0:00:00]} 57. Rh8 {[%emt 0:00:00]} Rb6 {[%emt 0:00:00]} 58. Rh5+ {[%emt 0:00:00]} Kg6 {[%emt 0:00:00] [#]} 59. Rh2 $1 {[%emt 0:00:00]} Bd3 {[%emt 0:00:00]} (59... Rxb2 $2 {is the wrong capture.} 60. Ke3 $18) 60. Ke3 {[%emt 0:00:00]} Kf5 {[%emt 0:00:00]} 61. Na4 {[%emt 0:01:21]} Rb8 {[%emt 0:00:00]} 62. Nc5 {[%emt 0:01:01]} Re8+ {[%emt 0:00:00]} 63. Ne6 {[%emt 0:02:02]} Kg4 {[%emt 0:00:00]} 64. Rh6 {[%emt 0:01:32]} Bf5 {[%emt 0:00:25]} 65. Rxf6 {[%emt 0:00:25]} Rb8 {[%emt 0:00:35]} 66. Nd4 {[%emt 0:02:00]} Bd7 {[%emt 0:02:03]} 67. Rg6+ {[%emt 0:01:10]} Kh5 {[%emt 0:00:10]} 68. Rg7 {[%emt 0:00:16]} Ba4 {[%emt 0:00:22]} 69. Nf5 {[%emt 0:01:23]} Rxb2 {[%emt 0:00:52]} 70. Rg5# {[%emt 0:00:40]} 1-0

[Event "African Individual Chess-ch Open 2024"]
[Site "Accra"]
[Date "2024.03.17"]
[Round "5.10"]
[White "Ntamatungiro, Wilfried"]
[Black "Kayonde, Andrew"]
[Result "0-1"]
[ECO "B12"]
[WhiteElo "1905"]
[BlackElo "2321"]
[Annotator "RC"]
[PlyCount "69"]
[EventDate "2024.03.13"]
[EventCountry "GHA"]
[SourceTitle "playchess.com"]
[Source "ChessBase"]
[SourceQuality "1"]
[TimeControl "5400+30"]

1. e4 {[%emt 0:00:04]} c6 {[%emt 0:00:15]} 2. d4 {[%emt 0:00:21]} d5 {[%emt 0:00:09]} 3. e5 {[%emt 0:00:12]} c5 {[%emt 0:00:21]} 4. c3 {[%emt 0:01:02]} Nc6 {[%emt 0:00:19]} 5. Bb5 {[%emt 0:02:30]} Qb6 {[%emt 0:03:55]} 6. Ba4 {[%emt 0:00:27]} cxd4 {[%emt 0:00:52]} 7. cxd4 {[%emt 0:00:28]} Bf5 {[%emt 0:00:41]} 8. Nc3 {[%emt 0:00:30]} e6 {[%emt 0:00:39]} 9. a3 {[%emt 0:00:11]} Nge7 {[%emt 0:07:30]} 10. Nge2 {[%emt 0:01:03]} a6 {[%emt 0:05:28]} 11. O-O {[%emt 0:01:13]} Qd8 {[%emt 0:01:13]} 12. Bg5 {[%emt 0:00:49]} h6 {[%emt 0:00:21]} 13. Bh4 {[%emt 0:02:00]} g5 {[%emt 0:00:45]} 14. Bg3 {[%emt 0:00:42]} b5 {[%emt 0:01:01]} 15. Bc2 {[%emt 0:04:13]} Qb6 {[%emt 0:00:13]} 16. Bb3 {[%emt 0:03:15]} Bg7 {[%emt 0:07:33]} 17. Kh1 {[%emt 0:05:28]} h5 {[%emt 0:01:10]} 18. f4 {[%emt 0:05:09]} h4 {[%emt 0:00:43]} 19. Bf2 {[%emt 0:00:23]} g4 {[%emt 0:00:08]} 20. g3 {[%emt 0:01:25]} Ng6 {[%emt 0:03:10]} 21. Rc1 {[%emt 0:03:13]} Rd8 {[%emt 0:03:36]} 22. Kg1 {[%emt 0:07:50]} hxg3 {[%emt 0:05:01]} 23. hxg3 {[%emt 0:00:10]} b4 {[%emt 0:15:09]} 24. Na4 {[%emt 0:05:28]} Be4 {[%emt 0:03:36]} 25. Be3 {[%emt 0:00:15]} Qb5 {[%emt 0:06:30]} 26. Rc5 {[%emt 0:10:37]} Rh1+ {[%emt 0:01:01]} 27. Kf2 {[%emt 0:00:12]} Rh2+ {[%emt 0:00:08]} 28. Ke1 {[%emt 0:00:12]} Qd3 {[%emt 0:00:14]} 29. Qxd3 {[%emt 0:04:29]} Bxd3 {[%emt 0:00:05]} 30. Rf2 {[%emt 0:00:33]} Rh1+ {[%emt 0:00:16]} 31. Kd2 {[%emt 0:00:56]} Bb5 {[%emt 0:00:13]} 32. f5 {[%emt 0:01:33]} exf5 {[%emt 0:04:47]} 33. Rf3 {[%emt 0:40:07]} f4 34. Rxf4 {[%emt 0:00:00]} Na5 {[%emt 0:00:48]} 35. Rf5 {[%emt 0:00:00]} 0-1

[Event "African Individual Chess-ch Open 2024"]
[Site "Accra"]
[Date "2024.03.17"]
[Round "5.11"]
[White "Wanyama, Harold"]
[Black "Egbe, Kossi Thierry"]
[Result "1-0"]
[ECO "E00"]
[WhiteElo "2226"]
[BlackElo "1871"]
[Annotator "TA"]
[PlyCount "131"]
[EventDate "2024.03.13"]
[EventCountry "GHA"]
[SourceTitle "playchess.com"]
[Source "ChessBase"]
[SourceQuality "1"]
[TimeControl "5400+30"]

{[%evp 12,131,2,17,26,29,26,12,142,127,227,213,279,277,299,315,297,218,370,372,364,365,428,431,465,456,454,432,529,502,501,411,493,356,312,150,111,138,268,263,275,269,303,289,348,360,365,257,420,414,478,460,433,329,359,365,361,346,323,227,368,370,333,386,386,386,455,439,449,431,428,378,418,388,477,465,643,560,552,541,704,701,7727,7737,1381,7013,6079,7160,5069,2086,2170,1756,9925,9475,6390,6101,5173,5081,29973,29975,29975,29975,29975,29976,29976,29977,29979,29979,29979,29979,29980,29981,29983,29980,29986,29987,29988,29988,29989,29990,29992,29991]} 1. d4 {[%emt 0:00:05]} Nf6 {[%emt 0:02:35]} 2. c4 {[%emt 0:00:09]} e6 {[%emt 0:00:52]} 3. g3 {[%emt 0:00:09]} Bb4+ {[%emt 0:01:10]} 4. Nd2 {[%emt 0:00:10]} c5 {[%emt 0:00:55]} 5. a3 {[%emt 0:00:31]} Bxd2+ {[%emt 0:00:30]} 6. Qxd2 {[%emt 0:00:17]} cxd4 {[%emt 0:01:16]} 7. Nf3 {[%emt 0:03:06]} Qc7 {[%emt 0:05:15]} 8. Qxd4 {[%emt 0:04:06]} Nc6 {[%emt 0:00:33]} 9. Qh4 {[%emt 0:00:16][%cal Oc1h6]} Na5 {[%emt 0:14:28]} (9... h6 $11) 10. Bg5 {[%emt 0:01:03] Schwarz hat schwache schwarze Felder} Ke7 {[%emt 0:10:05]} (10... Nb3 $16) 11. Rc1 $18 {[%emt 0:02:48]} Nb3 {[%emt 0:02:02][%cal Ba5b3,Bb3c5,Bc5a4][%mdl 32]} 12. Rc3 {[%emt 0:02:13]} Nc5 {[%emt 0:01:58]} 13. b4 {[%emt 0:00:17] Gegen d6 gerichtet.} Na4 {[%emt 0:00:58]} 14. Rc1 {[%emt 0:01:20] Bg2 ist eine echte Drohung.} a5 $2 {[%emt 0:01:09]} (14... b6 15. Bg2 h6) 15. Bg2 {[%emt 0:03:04]} axb4 {[%emt 0:03:31]} 16. axb4 {[%emt 0:00:27]} d6 {[%emt 0:01:15]} 17. O-O {[%emt 0:00:35]} h6 {[%emt 0:02:43] [#]} 18. c5 $1 {[%emt 0:01:21][%mdl 512]} dxc5 {[%emt 0:48:15]} 19. bxc5 {[%emt 1:18:03]} Nxc5 {[%emt 0:00:00]} 20. Bf4 {[%emt 0:00:00]} Qa5 {[%emt 0:00:00]} 21. Be5 {[%emt 0:00:00]} Bd7 {[%emt 0:00:00]} 22. Qd4 {[%emt 0:00:00]} Nce4 {[%emt 0:00:00] Pariert Bd6+.} 23. Rc7 {[%emt 0:00:00]} (23. Nh4 $18 Bc6 24. Bxe4 (24. Rxc6 bxc6 25. Bxe4 Rhd8 $18) 24... Nxe4 25. Rxc6 (25. Bxg7 Rhd8 $16) 25... bxc6 26. Qxe4) 23... Rhd8 $16 {[%emt 0:00:00]} 24. Rxb7 {[%emt 0:00:00] Und jetzt Bxf6+ wäre schön. Weiß steht aktiver.} Ke8 {[%emt 0:00:00]} (24... Qd5 $16 {war einen Versuch wert.} 25. Rb4 Ke8) 25. Bc7 $18 {[%emt 0:00:00] Das Läuferpaar ist gut.} Qc5 {[%emt 0:00:00]} 26. Bxd8 {[%emt 0:00:00]} Rxd8 {[%emt 0:00:00]} 27. Rd1 {[%emt 0:00:00]} Qxd4 {[%emt 0:00:00]} 28. Rxd4 {[%emt 0:00:00]} ({Schwächer ist} 28. Nxd4 Ba4 29. Rc1 (29. Rd3 Nc5 $11) 29... Rxd4 $14) 28... Nc3 {[%emt 0:00:00]} 29. Kf1 {[%emt 0:00:00] Und Ne5 würde nun gewinnen.} Nfd5 $2 {[%emt 0:00:00]} (29... Ra8 {ist eine bessere Verteidigung.} 30. Ne1 Ra5 31. Rdxd7 Nxd7) 30. Ne5 {[%emt 0:00:00]} Bb5 {[%emt 0:00:00]} 31. Bxd5 {[%emt 0:00:00]} ({Weniger gut wäre} 31. Rxf7 Nxe2 32. Rxd5 exd5 $16) 31... exd5 {[%emt 0:00:00]} 32. Rd2 {[%emt 0:00:00]} (32. Nxf7 Rd7 33. Rxd7 Bxe2+ 34. Ke1 Kxd7) 32... f6 {[%emt 0:00:26]} 33. Nd3 {[%emt 0:00:00]} Rd7 {[%emt 0:01:38]} 34. Rxd7 {[%emt 0:00:00]} Kxd7 {[%emt 0:05:56][%mdl 4096] Endspiel. KRN-KBN} 35. Nf4 {[%emt 0:08:00][%cal Of4h5] Schwarz muss nun Nh5! beachten.} Bc4 {[%emt 0:00:00]} (35... g5 {kämpft weiter.}) 36. Nh5 {[%emt 0:00:00]} Ne4 {[%emt 0:00:00]} 37. Rc2 {[%emt 0:00:00]} g6 {[%emt 0:00:00]} 38. f3 {[%emt 0:00:00]} Ng5 {[%emt 0:00:00]} 39. Nxf6+ {[%emt 0:00:00]} Ke6 {[%emt 0:00:13]} 40. Ng4 {[%emt 0:00:00]} Nxf3 {[%emt 0:00:40]} 41. Nxh6 {[%emt 0:00:00]} Nd4 {[%emt 0:00:00]} 42. Rb2 {[%emt 0:00:00]} Ke5 {[%emt 0:00:00]} 43. Kf2 {[%emt 0:00:00]} Ke4 {[%emt 0:00:00]} 44. h4 {[%emt 0:00:00]} Nb3 {[%emt 0:00:00]} 45. Nf7 {[%emt 0:00:00]} Kd4 {[%emt 0:00:00]} 46. Nh8 {[%emt 0:00:00]} Kc3 {[%emt 0:00:00] [#]} 47. Rxb3+ $1 {[%emt 0:00:00]} Bxb3 {[%emt 0:00:00]} 48. Nxg6 {[%emt 0:00:00] KB-KN} Bc2 {[%emt 0:00:00]} 49. Nf4 {[%emt 0:00:00]} Kd4 {[%emt 0:00:00]} 50. e3+ {[%emt 0:00:00]} Ke5 {[%emt 0:00:00]} 51. Ne2 {[%emt 0:00:00]} Be4 {[%emt 0:00:00]} 52. g4 {[%emt 0:00:00]} Bc2 {[%emt 0:00:00]} 53. g5 {[%emt 0:00:00]} Bg6 {[%emt 0:00:00]} 54. Ng3 {[%emt 0:00:00]} d4 {[%emt 0:00:00]} 55. exd4+ {[%emt 0:00:00] Weiß setzt Matt.} Kxd4 {[%emt 0:00:00]} 56. h5 {[%emt 0:00:00]} Bc2 {[%emt 0:00:54]} 57. Kf3 {[%emt 0:00:00]} Ke5 {[%emt 0:01:09]} 58. Kg4 {[%emt 0:00:00]} Bd1+ {[%emt 0:01:32]} 59. Kh4 {[%emt 0:00:00]} Bc2 {[%emt 0:01:43]} 60. Nf1 {[%emt 0:00:00]} Ke6 {[%emt 0:02:31]} 61. Ne3 {[%emt 0:00:00]} Bd3 {[%emt 0:00:18]} 62. Ng4 {[%emt 0:00:00]} Bc2 {[%emt 0:01:19]} 63. g6 {[%emt 0:00:00]} Bd1 {[%emt 0:03:14]} 64. Kg5 {[%emt 0:00:00]} Ke7 {[%emt 0:00:47]} 65. h6 {[%emt 0:00:00]} Kf8 {[%emt 0:00:06]} 66. Nf6 {[%emt 0:00:00] Gewichteter Fehlerwert: Weiß=0.30/Schwarz=0.54.  Gewinn verpasst:   	Weiß=1     	---        Fehler:       	---       	Schwarz=6     Ungenau:       	---       	Schwarz=4     OK:         	Weiß=22    	Schwarz=13} 1-0

[Event "African Individual Chess-ch Open 2024"]
[Site "Accra"]
[Date "2024.03.17"]
[Round "5.12"]
[White "Frempong-Smart Daniel"]
[Black "Rongwane, Gomolemo"]
[Result "0-1"]
[ECO "E05"]
[WhiteElo "1877"]
[BlackElo "2021"]
[Annotator "RC"]
[PlyCount "134"]
[EventDate "2024.03.13"]
[EventCountry "GHA"]
[SourceTitle "playchess.com"]
[Source "ChessBase"]
[SourceQuality "1"]
[TimeControl "5400+30"]

1. d4 {[%emt 0:00:07]} Nf6 {[%emt 0:00:24]} 2. Nf3 {[%emt 0:00:21]} e6 {[%emt 0:00:16]} 3. g3 {[%emt 0:01:41]} d5 {[%emt 0:01:07]} 4. Bg2 {[%emt 0:01:02]} Be7 {[%emt 0:00:38]} 5. O-O {[%emt 0:00:59]} O-O {[%emt 0:00:10]} 6. c4 {[%emt 0:00:28]} dxc4 {[%emt 0:00:35]} 7. Ne5 {[%emt 0:00:22]} c5 {[%emt 0:01:16]} 8. dxc5 {[%emt 0:01:23]} Bxc5 {[%emt 0:00:14]} 9. Nxc4 {[%emt 0:01:57]} Nc6 {[%emt 0:03:02]} 10. Nc3 {[%emt 0:01:11]} Qe7 {[%emt 0:03:37]} 11. Bg5 {[%emt 0:15:20]} Rd8 {[%emt 0:10:49]} 12. Qa4 {[%emt 0:13:19]} Bd7 {[%emt 0:07:08]} 13. Bxf6 {[%emt 0:07:53]} gxf6 {[%emt 0:01:18]} 14. Ne4 {[%emt 0:08:19]} Nd4 {[%emt 0:02:40]} 15. Qa5 {[%emt 0:09:11]} Bb5 {[%emt 0:11:07]} 16. Nxc5 {[%emt 0:08:54]} Qxc5 {[%emt 0:12:05]} 17. b3 {[%emt 0:04:25]} b6 {[%emt 0:12:43]} 18. Qe1 {[%emt 0:03:10]} Rac8 {[%emt 0:00:24]} 19. Rc1 {[%emt 0:00:26]} Qh5 {[%emt 0:00:25]} 20. f3 {[%emt 0:01:37]} Bc6 {[%emt 0:03:19]} 21. g4 {[%emt 0:01:15]} Qh6 {[%emt 0:02:28]} 22. e3 {[%emt 0:01:20]} Nb5 {[%emt 0:00:41]} 23. a4 {[%emt 0:01:01]} Nd6 {[%emt 0:02:36]} 24. Nxd6 {[%emt 0:00:32]} Rxd6 {[%emt 0:00:01]} 25. f4 {[%emt 0:00:16]} Qf8 {[%emt 0:01:14]} 26. Rxc6 {[%emt 0:03:42]} Rdxc6 {[%emt 0:00:11]} 27. Bxc6 {[%emt 0:00:07]} Rxc6 {[%emt 0:23:32]} 28. Qd2 {[%emt 0:00:58]} Rd6 {[%emt 0:00:00]} 29. Qc3 {[%emt 0:00:22]} Qd8 {[%emt 0:00:00]} 30. Rc1 {[%emt 0:01:41]} Rd3 {[%emt 0:00:00]} 31. Qc8 {[%emt 0:01:04]} Qxc8 {[%emt 0:00:00]} 32. Rxc8+ {[%emt 0:00:12]} Kg7 {[%emt 0:00:00]} 33. Kf2 {[%emt 0:03:10]} Rxb3 {[%emt 0:00:00]} 34. Rc7 {[%emt 0:00:15]} a5 {[%emt 0:00:00]} 35. h4 {[%emt 0:00:50]} Rb4 {[%emt 0:00:00]} 36. Rb7 {[%emt 0:00:13]} Rxa4 {[%emt 0:00:00]} 37. Rxb6 {[%emt 0:00:02]} Ra1 {[%emt 0:00:00]} 38. Ra6 {[%emt 0:00:13]} a4 {[%emt 0:00:00]} 39. f5 {[%emt 0:08:02]} exf5 {[%emt 0:00:00]} 40. gxf5 {[%emt 0:00:01]} a3 {[%emt 0:00:00]} 41. Kf3 {[%emt 0:01:22]} a2 {[%emt 0:00:00]} 42. Kg2 {[%emt 0:00:25]} Kh6 {[%emt 0:00:00]} 43. Rxf6+ {[%emt 0:01:35]} Kh5 {[%emt 0:00:00]} 44. Ra6 {[%emt 0:00:00]} Kxh4 {[%emt 0:00:00]} 45. Ra4+ {[%emt 0:00:00]} Kg5 {[%emt 0:00:00]} 46. e4 {[%emt 0:00:00]} Kf4 {[%emt 0:00:00]} 47. Kh2 {[%emt 0:00:00]} h5 {[%emt 0:00:00]} 48. Kg2 {[%emt 0:00:00]} h4 {[%emt 0:00:00]} 49. Kh2 {[%emt 0:00:00]} h3 {[%emt 0:00:00]} 50. e5+ {[%emt 0:00:00]} Kxf5 {[%emt 0:00:00]} 51. Ra5 {[%emt 0:00:00]} Ke6 {[%emt 0:00:00]} 52. Ra8 {[%emt 0:00:00]} Kxe5 {[%emt 0:00:00]} 53. Re8+ {[%emt 0:00:00]} Kf4 {[%emt 0:00:00]} 54. Ra8 {[%emt 0:00:00]} f5 {[%emt 0:00:00]} 55. Ra4+ {[%emt 0:00:00]} Kf3 {[%emt 0:00:00]} 56. Ra3+ {[%emt 0:00:00]} Kf2 {[%emt 0:00:00]} 57. Ra4 {[%emt 0:00:00]} Ke2 {[%emt 0:00:00]} 58. Ra8 {[%emt 0:00:00]} f4 {[%emt 0:00:00]} 59. Re8+ {[%emt 0:00:00]} Kf1 {[%emt 0:00:00]} 60. Ra8 {[%emt 0:00:00]} Re1 {[%emt 0:00:00]} 61. Rxa2 {[%emt 0:00:00]} Re2+ {[%emt 0:00:00]} 62. Kh1 {[%emt 0:00:00]} Kf2 {[%emt 0:00:00]} 63. Ra8 {[%emt 0:00:00]} f3 {[%emt 0:00:00]} 64. Rf8 {[%emt 0:00:00]} Ke3 {[%emt 0:00:00]} 65. Rh8 {[%emt 0:05:09]} Re1+ {[%emt 0:00:00]} 66. Kh2 {[%emt 0:00:15]} f2 {[%emt 0:00:00]} 67. Re8+ {[%emt 0:04:39]} Kd4 {[%emt 0:00:00]} 0-1

[Event "African Individual Chess-ch Open 2024"]
[Site "Accra"]
[Date "2024.03.17"]
[Round "5.13"]
[White "Ntsaou Moubikou, Josue Cyriaque"]
[Black "Adewole, Adeyinka Samuel"]
[Result "0-1"]
[ECO "B07"]
[WhiteElo "1532"]
[BlackElo "1935"]
[Annotator "NA RC"]
[PlyCount "70"]
[EventDate "2024.03.13"]
[EventCountry "GHA"]
[SourceTitle "playchess.com"]
[Source "ChessBase"]
[SourceQuality "1"]
[TimeControl "5400+30"]

1. e4 {[%emt 0:00:06]} d6 {[%emt 0:05:26]} 2. d4 {[%emt 0:00:30]} Nf6 {[%emt 0:00:30]} 3. Nc3 {[%emt 0:00:30]} g6 {[%emt 0:00:30]} 4. h3 {[%emt 0:00:30]} Bg7 {[%emt 0:00:30]} 5. g3 {[%emt 0:00:30]} c6 {[%emt 0:00:30]} 6. Bg2 {[%emt 0:00:30]} Qc7 {[%emt 0:00:30]} 7. Nge2 {[%emt 0:00:30]} a6 {[%emt 0:00:30]} 8. O-O {[%emt 0:00:30]} Nbd7 {[%emt 0:00:30]} 9. Be3 {[%emt 0:00:30]} b5 {[%emt 0:00:30]} 10. a3 {[%emt 0:00:30]} Bb7 {[%emt 0:00:30]} 11. Qd2 {[%emt 0:18:24]} Nb6 {[%emt 0:02:12]} 12. b3 {[%emt 0:00:49]} h5 {[%emt 0:00:30]} 13. f3 {[%emt 0:02:15]} Nfd7 {[%emt 0:01:32]} 14. Rad1 {[%emt 0:04:33]} Rc8 {[%emt 0:01:36]} 15. Kf2 {[%emt 0:07:44]} c5 {[%emt 0:02:03]} 16. d5 {[%emt 0:02:03]} O-O {[%emt 0:04:46]} 17. h4 {[%emt 0:03:18]} b4 {[%emt 0:00:57]} 18. Nb1 {[%emt 0:05:11]} f5 {[%emt 0:00:30]} 19. Nf4 {[%emt 0:00:30]} fxe4 {[%emt 0:00:30]} 20. Ne6 {[%emt 0:00:30]} Qb8 {[%emt 0:00:30]} 21. Nxf8 {[%emt 0:00:30]} Rxf8 {[%emt 1:15:58]} 22. c4 {[%emt 0:04:50]} bxc3 {[%emt 0:00:00]} 23. Nxc3 {[%emt 0:00:30]} Nf6 24. Kg1 {[%emt 0:00:30]} Nbxd5 {[%emt 0:00:00]} 25. Nxd5 {[%emt 0:00:30]} Nxd5 {[%emt 0:00:00]} 26. fxe4 {[%emt 0:06:17]} Rxf1+ {[%emt 0:00:00]} 27. Rxf1 {[%emt 0:02:30]} Nxe3 {[%emt 0:00:00]} 28. Re1 {[%emt 0:03:27]} Ng4 {[%emt 0:00:00]} 29. Qg5 {[%emt 0:09:05]} Qe8 {[%emt 0:00:00]} 30. Bf3 {[%emt 0:03:59]} Bh6 {[%emt 0:00:00]} 31. Qxg4 {[%emt 0:11:07]} hxg4 {[%emt 0:00:00]} 32. e5 {[%emt 0:00:38]} gxf3 {[%emt 0:00:00]} 33. exd6 {[%emt 0:00:39]} f2+ {[%emt 0:00:00]} 34. Kxf2 {[%emt 0:00:35]} Qf7+ {[%emt 0:00:00]} 35. Kg1 {[%emt 0:00:41]} Qf3 {[%emt 0:00:00]} 0-1